bitfinex-derivatives/quotes_ETHF0:USTF0_20250929
["timestamp","ask_amount","ask_price","bid_price","bid_amount"]
[1759174366498,1.17457,4170.9,4170.8,0.86378]
[1759174366807,0.7433,4170.1,4170.0,0.4325]
[1759174367002,0.7433,4169.8,4169.7,0.65369]
[1759174367202,0.74514469,4169.8,4169.7,1.20499]
[1759174367403,0.00184469,4169.8,4169.7,1.20499]
[1759174367599,0.21814469,4169.8,4169.7,1.20499]
[1759174367804,0.74514469,4169.8,4169.7,1.20499]
[1759174377316,0.74514469,4169.8,4169.7,1.21019]
[1759174379016,0.00184469,4169.8,4169.7,1.21019]
[1759174379911,0.5277,4170.7,4170.6,0.4309]
[1759174380217,1.24103861,4170.7,4170.6,0.7553]
[1759174380912,1.24354006,4170.7,4170.6,0.7553]
[1759174381111,0.73531271,4170.7,4170.6,0.7553]
[1759174381312,0.00251271,4170.7,4170.6,1.1866]
[1759174381519,0.00251271,4170.7,4170.6,6.1866]
[1759174382905,0.5277,4171.6,4171.5,1.31921]
[1759174383914,0.5299522,4171.6,4171.5,1.32097585]
[1759174384116,0.0022522,4171.6,4171.5,1.32097585]
[1759174384520,0.5299522,4171.6,4171.5,1.32097585]
[1759174385818,0.0022522,4171.6,4171.5,1.32097585]
[1759174388022,0.7328,4172.8,4172.7,0.7553]
[1759174388221,1.48136111,4172.8,4172.7,0.2155]
[1759174388523,41.7748,4172.8,4172.7,0.2155]
[1759174389028,41.77764447,4172.8,4172.7,0.2155]
[1759174389419,42.20871447,4172.8,4172.7,0.2155]
[1759174390524,1.1639,4172.6,4172.5,0.2155]
[1759174391818,1.1639,4172.6,4172.2,0.3244]
[1759174392135,0.7328,4172.3,4172.2,1.18644]
[1759174392534,0.2088,4172.3,4172.2,1.18644]
[1759174392721,0.7328,4172.7,4172.6,1.1864]
[1759174393122,1.16389,4172.7,4172.6,1.1864]
[1759174393525,0.7328,4172.7,4172.6,1.1864]
[1759174393829,0.00284447,4172.8,4172.7,1.18639]
[1759174395023,1.19781447,4172.8,4172.7,0.2155]
[1759174395223,1.19781447,4172.8,4172.0,0.43116]
[1759174395224,0.2213,4172.1,4172.0,0.43116]
[1759174395427,0.7639,4172.1,4172.0,0.63896]
[1759174395738,0.7639,4172.1,4172.0,1.18186]
[1759174396040,1.19505,4172.1,4172.0,0.7507]
[1759174396226,1.19505,4172.1,4172.0,1.18186]
[1759174396832,1.19505,4172.1,4172.0,0.4351]
[1759174397033,1.19505,4172.1,4172.0,0.7507]
[1759174398332,0.7639,4172.1,4172.0,1.18186]
[1759174400533,0.2213,4172.1,4172.0,1.31776]
[1759174400731,0.5512,4172.1,4172.0,1.31776]
[1759174401636,1.0059,4172.5,4172.4,0.4351]
[1759174401841,0.4633,4172.5,4172.4,1.18182]
[1759174402233,0.7932,4172.5,4172.4,1.18182]
[1759174402428,1.43701,4172.5,4172.4,1.18182]
[1759174402739,1.0059,4172.5,4172.4,1.18182]
[1759174402935,0.00284447,4172.8,4172.7,0.43109]
[1759174402936,0.55404447,4172.8,4172.7,0.43109]
[1759174403133,0.55404447,4172.8,4172.7,1.18179]
[1759174404038,0.00284447,4172.8,4172.7,1.18179]
[1759174404639,0.54454447,4172.8,4172.7,1.18179]
[1759174405640,0.00284447,4172.8,4172.7,1.18179]
[1759174413143,0.54454447,4172.8,4172.7,1.18179]
[1759174413638,0.75004447,4172.8,4172.7,1.18179]
[1759174413844,0.8835,4172.5,4172.4,0.43112]
[1759174414047,0.2179,4172.5,4172.4,1.19732]
[1759174414743,1.31461,4172.5,4172.4,0.4312]
[1759174414934,0.1363,4172.0,4171.8,0.335]
[1759174415139,0.7472,4171.9,4171.8,0.97648]
[1759174415548,41.0179,4172.2,4171.9,0.335]
[1759174415740,41.0179,4172.2,4172.1,0.7662]
[1759174415942,41.2234,4172.2,4172.1,0.7662]
[1759174416137,0.3238,4172.5,4172.4,0.43112]
[1759174416348,1.82075993,4172.5,4172.4,1.19732]
[1759174416644,42.62075993,4172.5,4172.4,1.19732]
[1759174417147,1.82075993,4172.5,4172.4,1.19732]
[1759174417350,1.82075993,4172.5,4172.4,0.86232]
[1759174417945,1.82075993,4172.5,4172.4,1.19732]
[1759174418244,1.38964993,4172.5,4172.4,1.19732]
[1759174418439,1.82075993,4172.5,4172.4,1.19732]
[1759174420343,0.2179,4172.1,4172.0,0.335]
[1759174420542,0.1363,4172.0,4171.7,0.335]
[1759174420748,0.7472,4171.8,4171.7,1.19739]
[1759174421243,0.5417,4171.8,4171.7,1.19739]
[1759174422052,0.7472,4172.5,4172.4,1.19732]
[1759174422246,1.25346128,4172.5,4172.4,1.19732]
[1759174423242,0.50626128,4172.5,4172.4,1.19732]
[1759174423443,0.00284447,4172.8,4172.7,1.19729]
[1759174426453,0.22074447,4172.8,4172.7,1.19729]
[1759174426752,0.00284447,4172.8,4172.7,1.19729]
[1759174427354,0.75004447,4172.8,4172.7,1.19729]
[1759174427848,0.00284447,4172.8,4172.7,1.19729]
[1759174428346,0.22074447,4172.8,4172.7,1.19729]
[1759174428551,0.54454447,4172.8,4172.7,1.19729]
[1759174429053,0.75004447,4172.8,4172.7,1.19729]
[1759174429446,0.22074447,4172.8,4172.7,1.19729]
[1759174429846,0.00284447,4172.8,4172.7,1.19729]
[1759174430547,0.54454447,4172.8,4172.7,1.19729]
[1759174430846,0.00284447,4172.8,4172.7,1.19729]
[1759174431443,0.22074447,4172.8,4172.7,1.19729]
[1759174431652,0.00284447,4172.8,4172.7,1.19729]
[1759174436055,0.54454447,4172.8,4172.7,1.19729]
[1759174438650,0.77114447,4172.8,4172.7,1.19729]
[1759174438857,0.00284447,4172.8,4172.7,1.19729]
[1759174444355,0.77114447,4172.8,4172.7,1.19729]
[1759174444557,0.00284447,4172.8,4172.7,1.19729]
[1759174448665,0.77114447,4172.8,4172.7,0.64139]
[1759174448862,0.77114447,4172.8,4172.7,0.43109]
[1759174449264,0.54454447,4172.8,4172.7,1.17859]
[1759174449672,0.00284447,4172.8,4172.7,1.17859]
[1759174451766,0.54454447,4172.8,4172.7,1.17859]
[1759174451963,0.22674447,4172.8,4172.7,1.17859]
[1759174452371,0.77114447,4172.8,4172.7,1.17859]
[1759174453272,0.77114447,4172.8,4172.7,0.43109]
[1759174453576,0.77114447,4172.8,4172.5,0.45501]
[1759174453577,0.7683,4172.6,4172.5,0.45501]
[1759174453768,1.27503131,4172.6,4172.5,0.99021]
[1759174454163,42.07503131,4172.6,4172.5,0.68251]
[1759174454374,41.5683,4172.6,4172.5,0.45501]
[1759174454573,42.07493355,4172.6,4172.5,0.67131]
[1759174454772,41.5683,4172.6,4172.5,1.20521]
[1759174455670,0.7683,4172.6,4172.5,1.20521]
[1759174457183,0.00284447,4172.8,4172.7,1.18129]
[1759174457482,0.76964447,4172.8,4172.7,1.18129]
[1759174458477,0.00284447,4172.8,4172.7,1.18129]
[1759174458782,0.21774447,4172.8,4172.7,1.18129]
[1759174459079,0.55474447,4172.8,4172.7,1.18129]
[1759174459983,0.76964447,4172.8,4172.7,1.18129]
[1759174460182,5.76964447,4172.8,4172.7,0.43109]
[1759174460678,6.27608291,4172.8,4172.7,0.43109]
[1759174465685,5.76964447,4172.8,4172.7,0.64849]
[1759174465873,6.20072447,4172.8,4172.7,0.43109]
[1759174466075,6.70703212,4172.8,4172.7,0.43109]
[1759174466487,0.4503,4172.6,4172.5,0.0239]
[1759174466687,1.437,4172.6,4172.5,0.0239]
[1759174466886,1.32971,4172.5,4172.4,0.43111]
[1759174467086,1.19503,4172.3,4172.2,0.43113]
[1759174467388,1.0059,4172.3,4172.2,0.43113]
[1759174467778,1.43703,4172.3,4172.2,0.43113]
[1759174468376,1.0059,4172.3,4172.2,0.43113]
[1759174468985,1.0059,4172.3,4172.2,0.64853]
[1759174470081,1.0059,4172.3,4172.2,0.43113]
[1759174470982,1.0059,4172.3,4172.2,0.64853]
[1759174471783,0.3136,4172.3,4172.2,1.18993]
[1759174471982,1.0059,4172.7,4172.6,0.98089]
[1759174472287,1.43699,4172.7,4172.6,1.1899]
[1759174472478,0.7639,4172.3,4172.2,1.18994]
[1759174473286,0.5389,4172.3,4172.2,1.18994]
[1759174473483,0.242,4172.7,4172.6,0.4311]
[1759174473687,0.4673,4172.7,4172.6,1.1899]
[1759174474088,0.7809,4172.7,4172.6,1.1899]
[1759174474293,1.0059,4172.7,4172.6,1.1899]
[1759174478595,0.7639,4172.7,4172.6,1.1899]
[1759174478892,1.0059,4172.7,4172.6,1.1899]
[1759174480188,0.7639,4172.7,4172.6,1.1899]
[1759174480392,0.00284447,4172.8,4172.7,1.18989]
[1759174482287,0.76674447,4172.8,4172.7,1.18989]
[1759174485289,0.76674447,4172.8,4172.7,0.85749]
[1759174485595,0.54174447,4172.8,4172.7,1.18989]
[1759174485795,0.22814447,4172.8,4172.7,1.18989]
[1759174485989,0.00284447,4172.8,4172.7,1.18989]
[1759174494394,0.54444447,4172.8,4172.7,1.18989]
[1759174494590,0.75334447,4172.8,4172.7,1.18989]
[1759174501608,0.75334447,4172.8,4172.7,0.64849]
[1759174501902,0.75334447,4172.8,4172.7,0.43109]
[1759174502097,0.75334447,4172.8,4172.7,0.65319]
[1759174502293,0.75334447,4172.8,4172.7,0.96069]
[1759174505708,0.75334447,4172.8,4172.7,1.17659]
[1759174506599,0.00284447,4172.8,4172.7,1.17659]
[1759174506800,4.47e-06,4172.8,4172.7,1.17659]
[1759174508210,4.47e-06,4172.8,4172.7,2.8746799]
[1759174508511,4.47e-06,4172.8,4172.7,1.17659]
[1759174509312,4.47e-06,4172.8,4172.7,2.8746799]
[1759174510216,4.47e-06,4172.8,4172.7,1.17659]
[1759174510410,0.22500447,4172.8,4172.7,2.8746799]
[1759174510713,4.47e-06,4172.8,4172.7,0.86909]
[1759174514318,4.47e-06,4172.8,4172.7,2.5671799]
[1759174520320,4.47e-06,4172.8,4172.7,2.8091799]
[1759174524526,4.47e-06,4172.8,4172.7,1.11109]
[1759174525219,4.47e-06,4172.8,4172.7,2.8091799]
[1759174525515,4.47e-06,4172.8,4172.7,1.11109]
[1759174525725,4.47e-06,4172.8,4172.7,2.8091799]
[1759174528326,0.77030447,4172.8,4172.7,0.43109]
[1759174528523,5.77030447,4172.8,4172.5,0.0239]
[1759174528820,5.77030447,4172.8,4171.8,1.6980899]
[1759174528821,0.7703,4171.9,4171.8,0.43118]
[1759174529219,41.5703,4171.9,4171.8,0.43118]
[1759174529420,5.7703,4171.9,4171.8,0.34189146]
[1759174529621,6.27461465,4171.9,4171.5,0.43296585]
[1759174529814,0.4407,4171.6,4171.5,0.00176585]
[1759174530018,0.7703,4171.6,4171.5,0.00176585]
[1759174530624,41.5703,4171.6,4171.5,0.00176585]
[1759174531833,41.8123,4171.6,4171.5,0.00176585]
[1759174532719,41.8123,4171.6,4171.5,0.54656585]
[1759174533133,46.8123,4171.6,4171.5,0.00176585]
[1759174533328,0.7703,4170.6,4170.5,0.43131]
[1759174533832,0.7703,4170.6,4170.5,0.97611]
[1759174534334,0.7703,4170.6,4170.5,0.97850567]
[1759174534628,0.7703,4170.6,4170.5,0.65220567]
[1759174535523,0.3296,4170.9,4170.8,0.43128]
[1759174535723,0.3296,4170.9,4170.8,0.86588]
[1759174535926,0.3296,4170.9,4170.8,1.19218]
[1759174536129,0.7703,4170.9,4170.8,1.19218]
[1759174536333,0.7703,4170.9,4170.8,0.43128]
[1759174540843,1.4532,4170.9,4169.0,1.6980899]
[1759174541144,1.4532,4170.9,4166.7,5.59975737]
[1759174541145,0.7387,4168.1,4167.3,0.3263]
[1759174541345,41.8456,4168.0,4167.2,0.43165]
[1759174541535,41.8456,4168.0,4167.1,0.3263]
[1759174541536,0.2161,4167.2,4167.1,0.7609]
[1759174541739,0.4611,4167.2,4167.1,0.7609]
[1759174541942,0.46370025,4167.2,4167.1,0.76353272]
[1759174542650,0.21870025,4167.2,4167.1,0.76353272]
[1759174542956,0.00260025,4167.2,4167.1,0.76353272]
[1759174544455,0.21870025,4167.2,4167.1,1.19519272]
[1759174545148,0.44330025,4167.2,4167.1,0.76353272]
[1759174545450,0.74130025,4167.2,4167.1,0.00263272]
[1759174546253,0.44330025,4167.2,4167.1,0.76353272]
[1759174546454,0.00260025,4167.2,4167.1,0.76353272]
[1759174547152,0.44330025,4167.2,4167.1,0.76353272]
[1759174547449,0.44330025,4167.2,4162.2,3.01448662]
[1759174547450,16.87030025,4167.2,4162.2,3.01448662]
[1759174547656,16.87030025,4167.2,4160.8,221.31975737]
[1759174547657,0.3296,4164.8,4163.5,0.1204]
[1759174547854,0.247,4164.9,4164.7,0.86651]
[1759174548047,40.8,4165.0,4164.9,0.86649]
[1759174548555,0.123,4165.1,4164.9,0.8687944]
[1759174548853,0.4526,4165.1,4164.9,0.8687944]
[1759174549158,0.5457,4165.1,4165.0,0.4346]
[1759174549449,0.7703,4165.1,4165.0,0.4346]
[1759174551155,0.7703,4165.1,4165.0,0.2185]
[1759174551752,0.7703,4165.1,4165.0,0.4346]
[1759174552755,0.3296,4165.3,4165.2,0.4346]
[1759174552947,0.3296,4165.3,4165.2,0.7609]
[1759174553854,0.5457,4165.7,4165.6,0.86642]
[1759174554062,0.1258,4166.0,4165.9,1.19269]
[1759174554063,0.3296,4166.0,4165.9,1.19269]
[1759174554255,0.7838,4166.2,4166.1,0.86057]
[1759174554553,0.9894,4166.2,4166.1,0.86057]
[1759174559763,0.1258,4166.5,4166.4,0.43174]
[1759174559960,0.5846,4166.5,4166.4,0.86054]
[1759174560157,1.35045894,4166.5,4166.4,0.86054]
[1759174560359,1.67445894,4166.5,4166.4,0.86054]
[1759174561066,1.6746773,4166.5,4166.4,0.86054]
[1759174562462,0.5368,4166.8,4166.7,1.18711]
[1759174562759,0.3386,4167.0,4166.9,0.64129]
[1759174562961,0.89952662,4167.0,4166.9,0.86049]
[1759174563355,1.42912662,4167.0,4166.9,0.86049]
[1759174565366,1.67512662,4167.0,4166.9,0.86049]
[1759174565753,1.67512662,4167.0,4166.9,1.18709]
[1759174566465,1.67512662,4167.0,4166.9,0.86049]
[1759174568257,1.42912662,4167.0,4166.9,1.18709]
[1759174568759,1.09772662,4167.0,4166.9,1.18709]
[1759174569160,0.56092662,4167.0,4166.9,1.18709]
[1759174569466,0.88492662,4167.0,4166.9,1.18709]
[1759174570961,0.56092662,4167.0,4166.9,1.18709]
[1759174576669,0.88912662,4167.0,4166.9,1.18709]
[1759174577261,0.01568662,4167.0,4166.9,1.18709]
[1759174577464,0.00260025,4167.2,4167.1,1.20606]
[1759174577658,2.5e-07,4167.2,4167.1,1.20606]
[1759174578770,0.54090025,4167.2,4167.1,1.45206]
[1759174580768,0.32820025,4167.2,4167.1,1.45206]
[1759174582477,2.5e-07,4167.2,4167.1,1.12116]
[1759174584279,0.3282,4167.9,4167.8,0.84819]
[1759174584570,0.5512,4167.9,4167.8,0.84819]
[1759174584774,0.5512,4167.9,4167.8,1.15999]
[1759174585175,0.55422411,4167.9,4167.8,1.15999]
[1759174586575,0.3338,4168.5,4168.4,0.43153]
[1759174586771,0.5747,4169.0,4168.9,0.84808]
[1759174587278,0.9085,4169.0,4168.9,0.63808]
[1759174587674,0.91126485,4169.0,4168.9,0.64019138]
[1759174588880,0.91126485,4169.0,4168.9,0.43359138]
[1759174589677,0.6926,4168.0,4167.9,0.63818]
[1759174589882,0.9101,4168.0,4167.9,0.43158]
[1759174590577,0.9101,4168.0,4167.9,0.43427922]
[1759174592780,0.9101,4168.0,4167.9,0.85087922]
[1759174593275,0.9101,4168.0,4167.9,0.43427922]
[1759174593781,0.9101,4168.0,4167.9,0.64087922]
[1759174594166,0.9101,4168.0,4167.9,0.43427922]
[1759174596674,0.9101,4168.0,4167.9,0.85087922]
[1759174600177,0.9101,4168.0,4167.9,1.16267922]
[1759174600178,0.3338,4168.0,4167.9,1.16267922]
[1759174600676,0.9101,4168.5,4168.4,0.63813]
[1759174601479,0.9101,4168.5,4168.4,1.15993]
[1759174602579,0.5568,4168.5,4168.4,1.15993]
[1759174603184,0.9101,4168.5,4168.4,0.84813]
[1759174603882,0.9101,4168.5,4168.4,1.15993]
[1759174605485,0.9101,4168.5,4168.4,0.84813]
[1759174606179,0.9101,4168.5,4168.4,1.15993]
[1759174607583,0.9101,4168.5,4168.4,0.84813]
[1759174608687,0.9101,4168.5,4168.4,0.43153]
[1759174609889,0.9101,4168.5,4168.4,0.84813]
[1759174611488,0.9101,4168.5,4168.4,1.15993]
[1759174612284,0.9101,4168.5,4168.4,0.84813]
[1759174612692,0.9101,4168.5,4168.0,1.07894]
[1759174612995,0.9101,4168.0,4167.9,0.43427922]
[1759174618596,0.9101,4168.0,4167.9,0.65537922]
[1759174619107,0.9101,4168.0,4167.9,0.43427922]
[1759174621301,1.85885567,4168.0,4167.9,0.00269922]
[1759174621604,6.85885567,4168.0,4167.9,0.00269922]
[1759174622402,47.22728567,4168.0,4167.9,0.00269922]
[1759174622695,47.22728567,4168.0,4167.9,0.43427922]
[1759174622896,42.47128567,4168.0,4167.9,0.43427922]
[1759174625102,42.22728567,4168.0,4167.9,0.43427922]
[1759174625295,42.47128567,4168.0,4167.9,0.43427922]
[1759174626905,0.5568,4168.0,4167.9,1.18737922]
[1759174627100,0.8936,4168.5,4168.4,1.18463]
[1759174627996,0.5515,4168.5,4168.4,1.18463]
[1759174628801,0.7578,4168.9,4168.8,1.18459]
[1759174629000,0.5515,4168.9,4168.8,1.18459]
[1759174632806,0.3247,4168.9,4168.8,1.18459]
[1759174633105,0.00276485,4169.0,4168.8,1.18459]
[1759174633297,0.00276485,4169.0,4168.9,0.7531]
[1759174633603,0.00276485,4169.0,4168.9,1.18458]
[1759174634006,0.00276485,4169.0,4168.9,6.18458]
[1759174634610,0.5515,4169.5,4169.4,1.18283]
[1759174634805,0.9074,4170.0,4169.9,0.64948]
[1759174635114,0.9074,4170.0,4169.9,0.86788]
[1759174635502,0.90931924,4170.0,4169.9,0.86788]
[1759174636113,0.90931924,4170.0,4169.9,1.18278]
[1759174636610,0.00191924,4170.0,4169.9,1.18278]
[1759174637306,0.00191924,4170.0,4169.9,6.18278]
[1759174637609,0.3314,4170.5,4170.4,1.18273]
[1759174638310,0.5556,4170.5,4170.4,1.18273]
[1759174638510,0.55864707,4170.5,4170.4,1.18273]
[1759174639008,0.33444707,4170.5,4170.4,1.18273]
[1759174641213,0.55864707,4170.5,4170.4,1.18273]
[1759174644415,0.68384707,4170.5,4170.4,1.18273]
[1759174645511,0.33444707,4170.5,4170.4,1.18273]
[1759174646013,0.54594707,4170.5,4170.4,1.18273]
[1759174647312,0.89744707,4170.5,4170.4,1.18273]
[1759174647513,0.89744707,4170.5,4170.4,0.43133]
[1759174648109,0.89744707,4170.5,4170.4,0.63963]
[1759174649216,0.89744707,4170.5,4170.4,0.85243]
[1759174651712,0.89744707,4170.5,4170.4,0.63963]
[1759174654411,0.89744707,4170.5,4170.4,0.85243]
[1759174657913,0.00304707,4170.5,4170.4,1.17623]
[1759174658419,0.31274707,4170.5,4170.4,1.17623]
[1759174659018,0.52424707,4170.5,4170.4,1.17623]
[1759174659415,0.64944707,4170.5,4170.4,1.17623]
[1759174659714,0.87574707,4170.5,4170.4,0.43133]
[1759174660418,41.67574707,4170.5,4170.4,0.43133]
[1759174665119,41.67574707,4170.5,4170.4,0.63963]
[1759174665120,0.87574707,4170.5,4170.4,0.63963]
[1759174665427,0.87574707,4170.5,4170.4,1.17623]
[1759174665724,0.87574707,4170.5,4170.4,0.85243]
[1759174666725,0.87574707,4170.5,4170.4,1.17623]
[1759174667427,0.00304707,4170.5,4170.4,1.17623]
[1759174667828,0.31274707,4170.5,4170.4,1.17623]
[1759174670430,0.00304707,4170.5,4170.4,1.17623]
[1759174671229,0.31274707,4170.5,4170.4,1.17623]
[1759174671425,0.52424707,4170.5,4170.4,1.17623]
[1759174674133,0.31274707,4170.5,4170.4,1.17623]
[1759174674328,0.00304707,4170.5,4170.4,1.17623]
[1759174674629,0.31904707,4170.5,4170.4,1.17623]
[1759174676635,0.52474707,4170.5,4170.4,1.17623]
[1759174679739,0.31904707,4170.5,4170.4,1.17623]
[1759174680637,0.52474707,4170.5,4170.4,1.17623]
[1759174680831,0.86214707,4170.5,4170.4,1.17623]
[1759174681131,0.86214707,4170.5,4170.4,0.43133]
[1759174681335,5.86214707,4170.5,4170.4,0.43133]
[1759174684732,0.316,4169.8,4169.6,1.71382793]
[1759174684935,0.7286,4169.8,4169.7,0.4314]
[1759174685236,0.7286,4169.8,4169.7,0.6575]
[1759174689644,0.7286,4169.8,4169.7,0.8685]
[1759174692547,0.7286,4169.8,4169.7,1.1961]
[1759174693143,0.1305,4170.0,4169.7,0.7647]
[1759174693347,0.00304707,4170.5,4170.4,1.19603]
[1759174693549,7.07e-06,4170.5,4170.4,1.43903]
[1759174701250,7.07e-06,4170.5,4170.4,6.43903]
[1759174702453,0.4298,4171.6,4171.5,1.32052]
[1759174702842,0.7056,4171.6,4171.5,1.32052]
[1759174703247,0.70840024,4171.6,4171.5,1.3230577]
[1759174703648,0.43260024,4171.6,4171.5,1.3230577]
[1759174705745,0.22440024,4171.6,4171.5,1.3230577]
[1759174706151,0.00280024,4171.6,4171.5,1.3230577]
[1759174712261,0.70980024,4171.6,4171.5,1.3230577]
[1759174712450,0.70980024,4171.6,4171.5,1.1136577]
[1759174714058,0.43340024,4171.6,4171.5,1.3320577]
[1759174714260,0.00280024,4171.6,4171.5,1.3320577]
[1759174715057,0.22800024,4171.6,4171.5,1.3320577]
[1759174715361,0.43340024,4171.6,4171.5,1.3320577]
[1759174716859,0.22800024,4171.6,4171.5,1.3320577]
[1759174717560,0.00280024,4171.6,4171.5,1.3320577]
[1759174722359,2.4e-07,4171.6,4171.5,1.3320577]
[1759174722564,0.4526,4172.9,4172.8,0.65629]
[1759174722861,42.04440563,4172.9,4172.8,0.96399]
[1759174723256,42.04440563,4172.9,4172.8,0.43109]
[1759174723658,42.04612932,4172.9,4172.8,0.43109]
[1759174723861,41.76972932,4172.9,4172.5,0.4368]
[1759174724061,0.707,4172.6,4172.5,0.3077]
[1759174724262,0.707,4172.6,4172.5,0.73882]
[1759174727074,0.707,4172.6,4172.5,0.96402]
[1759174729478,0.707,4172.6,4172.2,0.3077]
[1759174729479,0.4306,4172.6,4172.2,0.3077]
[1759174729776,0.707,4172.3,4172.2,0.43115]
[1759174729981,5.707,4172.3,4172.2,0.43115]
[1759174730179,46.507,4172.3,4172.2,0.43115]
[1759174730476,46.507,4172.3,4172.2,0.73885]
[1759174734079,0.4306,4172.8,4172.7,0.65629]
[1759174734281,1.46479186,4172.8,4172.7,0.96629]
[1759174734672,42.26479186,4172.8,4172.7,0.96629]
[1759174736882,41.98919186,4172.8,4172.7,1.17929]
[1759174737184,41.74619186,4172.8,4172.7,1.17929]
[1759174737375,41.98919186,4172.8,4172.7,1.17929]
[1759174738282,42.26479186,4172.8,4172.7,1.17929]
[1759174738576,41.98919186,4172.8,4172.7,1.17929]
[1759174739783,41.74619186,4172.8,4172.7,1.17929]
[1759174739983,41.98919186,4172.8,4172.7,1.17929]
[1759174740184,41.74619186,4172.8,4172.7,1.17929]
[1759174740377,41.98919186,4172.8,4172.7,1.17929]
[1759174740577,1.18919186,4172.8,4172.7,1.17929]
[1759174740977,1.46479186,4172.8,4172.7,1.17929]
[1759174741180,0.94619186,4172.8,4172.7,1.17929]
[1759174741386,0.51559186,4172.8,4172.7,1.17929]
[1759174741581,0.1269,4174.5,4172.8,1.17789]
[1759174741787,0.4482,4174.5,4174.4,0.2238]
[1759174741986,0.5712,4174.5,4174.4,0.2238]
[1759174742183,0.8468,4174.5,4174.4,0.31]
[1759174742380,0.2756,4174.4,4174.3,0.43093]
[1759174742584,0.7238,4174.4,4174.3,0.74093]
[1759174742781,0.72584462,4174.4,4174.3,0.43093]
[1759174742982,5.45024462,4174.4,4174.1,0.43095]
[1759174743191,0.4482,4173.9,4173.8,1.17779]
[1759174744392,0.243,4174.0,4173.8,1.17779]
[1759174744590,0.45024462,4174.4,4174.3,0.96473]
[1759174744788,0.69324462,4174.4,4174.3,1.17773]
[1759174744991,0.45024462,4174.4,4174.3,1.17773]
[1759174745191,0.96884462,4174.4,4174.3,0.96473]
[1759174745890,0.69324462,4174.4,4174.3,1.17773]
[1759174746392,0.46924462,4174.4,4174.3,1.17773]
[1759174746590,0.00204462,4174.4,4174.3,1.17773]
[1759174748191,0.22624462,4174.4,4174.3,1.17773]
[1759174748584,0.72584462,4174.4,4174.3,1.17773]
[1759174749087,0.72584462,4174.4,4174.3,0.96473]
[1759174749297,0.45024462,4174.4,4174.3,1.17773]
[1759174749792,0.22624462,4174.4,4174.3,1.17773]
[1759174750094,0.00204462,4174.4,4174.3,1.17773]
[1759174751398,0.22624462,4174.4,4174.3,1.17773]
[1759174752599,0.00204462,4174.4,4174.3,1.17773]
[1759174766506,0.04170039,4175.8,4175.7,0.43079]
[1759174766507,0.24890039,4175.8,4175.7,0.43079]
[1759174766707,0.93001745,4175.8,4175.7,0.95099]
[1759174766903,0.4179,4175.8,4175.2,1.39041]
[1759174767103,0.2744,4175.0,4174.7,0.3133]
[1759174767317,0.7666,4175.0,4174.9,0.43087]
[1759174767505,0.76955977,4175.0,4174.9,0.43347467]
[1759174767710,41.56955977,4175.0,4174.9,0.43347467]
[1759174768207,41.49525977,4175.0,4174.9,0.95367467]
[1759174768412,41.22085977,4175.0,4174.9,1.16237467]
[1759174769406,0.69525977,4175.0,4174.9,1.16237467]
[1759174770498,0.42085977,4175.0,4174.9,1.16237467]
[1759174771302,0.93519786,4175.0,4174.9,1.16237467]
[1759174771697,1.20959786,4175.0,4174.9,0.95367467]
[1759174771895,1.20959786,4175.0,4174.9,0.74677467]
[1759174772697,1.20959786,4175.0,4174.1,0.3133]
[1759174772698,0.2744,4174.9,4174.1,0.3133]
[1759174772903,0.6923,4174.2,4174.1,0.43096]
[1759174773100,0.93223809,4174.2,4174.1,1.15986]
[1759174773309,0.2744,4174.6,4174.5,0.43092]
[1759174773510,0.93247357,4174.6,4174.5,1.28402]
[1759174773809,0.93247357,4174.6,4174.5,1.2862374]
[1759174774403,0.51457357,4174.6,4174.5,1.2862374]
[1759174777921,0.72177357,4174.6,4174.5,1.2862374]
[1759174778827,1.20687357,4174.6,4174.5,0.4331374]
[1759174779015,6.63777357,4174.6,4174.5,0.4331274]
[1759174779519,1.63777357,4174.6,4174.5,0.4331274]
[1759174781016,1.20687357,4174.6,4174.5,0.4331274]
[1759174781213,0.93247357,4174.6,4174.5,1.2862274]
[1759174781420,1.44887357,4174.6,4174.5,1.2862274]
[1759174781914,0.75657357,4174.6,4174.5,1.2862274]
[1759174782521,0.51457357,4174.6,4174.5,1.2862274]
[1759174785523,0.242,4174.8,4174.7,0.43089]
[1759174785820,0.96361681,4174.8,4174.7,1.15979]
[1759174787324,0.75641681,4174.8,4174.7,1.15979]
[1759174787722,0.96361681,4174.8,4174.7,1.15979]
[1759174788123,1.44871681,4174.8,4174.7,0.95109]
[1759174789212,1.17431681,4174.8,4174.7,0.95109]
[1759174789416,1.17431681,4174.8,4174.7,1.15979]
[1759174790923,0.75641681,4174.8,4174.7,1.15979]
[1759174796722,1.89779681,4174.8,4174.7,0.74419]
[1759174796927,1.89779681,4174.8,4174.7,0.43089]
[1759174797127,1.46691681,4174.8,4174.7,0.43089]
[1759174798322,0.7105,4174.7,4174.6,0.4309]
[1759174798527,1.22491681,4174.7,4174.6,0.4309]
[1759174799123,1.22491681,4174.7,4174.6,0.7711]
[1759174799323,1.65581681,4174.7,4174.5,0.0022174]
[1759174799533,1.22491681,4174.6,4174.5,0.7733274]
[1759174800133,1.22491681,4174.6,4174.5,1.1084274]
[1759174800329,0.94961681,4174.6,4174.5,1.3180274]
[1759174801029,1.22491681,4174.6,4174.5,1.3180274]
[1759174802532,0.94961681,4174.6,4174.5,1.3180274]
[1759174803726,1.19161681,4174.6,4174.5,1.3180274]
[1759174804027,0.98231681,4174.6,4174.5,1.3180274]
[1759174804225,0.75641681,4174.6,4174.5,1.3180274]
[1759174805133,0.242,4174.9,4174.8,0.43088]
[1759174805433,0.75662373,4174.9,4174.8,1.18888]
[1759174807034,0.98252373,4174.9,4174.8,1.18888]
[1759174808331,1.19182373,4174.9,4174.8,1.18888]
[1759174809033,0.98252373,4174.9,4174.8,1.18888]
[1759174809438,0.51462373,4174.9,4174.8,1.18888]
[1759174809639,0.00295977,4175.0,4174.9,1.18887]
[1759174810833,40.8,4176.0,4175.9,1.18877]
[1759174811033,0.4352,4176.4,4176.3,0.97913]
[1759174811229,0.51428253,4176.5,4176.3,0.84853]
[1759174811542,41.2352,4177.3,4177.2,1.18863]